Workbook

Sheet Меню ГПД!!
A2: Разработано____________ | B2: Директор ООО"АБК-Пэймент" | K2: Согласовано | M2: Руководитель общеобразовательного
B3: Рахматуллин Р.Р. | M3: учреждения
B7: ООО "АБК-Пэймент"
A8: Примерное двенадцатидневное цикличное дополнительное меню группы продленного дня
A9: для учащихся образовательных учреждений Республики Татарстан
A10: 1 неделя
A11: № Сб.рец | B11: Наименование продуктов | C11: Стоимость,руб | D11: Выход,г | E11: Белки,г | F11: Жиры,г | G11: Угл-ды,г | H11: Энер.ценность (ККАЛ) | I11: В1,мг | J11: С,мг | K11: А,мкг | L11: Е,мг | M11: Са | N11: Р | O11: Mg | P11: Fe
B12: ПОНЕДЕЛЬНИК
B13: Меню дополнительного питания
A14: № 84/2017 | B14: Борщ из свежей капусты, с мясом птицы,со сметаной | D14: 250/10/7 | E14: 5.37 | F14: 6.59 | G14: 11.18 | H14: 133.57 | I14: 0.06 | J14: 10.70 | K14: 9.20 | L14: 2.45 | M14: 60.18 | N14: 74.60 | O14: 28.96 | P14: 3.44
A15: № 181/2017 | B15: Каша манная молочная с маслом сливочным | D15: 200/5 | E15: 5.86 | F15: 13.84 | G15: 30.91 | H15: 272.05 | I15: 0.08 | J15: 1.11 | K15: 75.24 | L15: 0.55 | M15: 128.60 | N15: 114.06 | O15: 19.33 | P15: 0.46
A16: № 342/2017 | B16: Компот из свежих яблок | D16: 200 | E16: 0.16 | F16: 0.16 | G16: 27.88 | H16: 114.6 | I16: 0.012 | J16: 0.9 | K16: 0 | L16: 0.08 | M16: 14.18 | N16: 4.4 | O16: 5.14 | P16: 0.952
A17: табл 6 стр 144 Дели +,2012 | B17: Хлеб сельский/белый | D17: 20/20 | E17: =E10+E14 -> 5.37 | F17: =F10+F14 -> 6.59 | G17: 11.18 | H17: 133.57 | I17: 0.06 | J17: 10.70 | K17: 9.20 | L17: 2.45 | M17: 60.18 | N17: 74.60 | O17: 28.96 | P17: 3.44
B18: Итого: | C18: 40 | D18: 713 | E18: =SUM(E14:E17) -> 16.76 | F18: =SUM(F14:F17) -> 27.17 | G18: 81.16 | H18: 653.79 | I18: 0.20 | J18: 23.42 | K18: 93.64 | L18: 5.53 | M18: 263.13 | N18: 267.66 | O18: 82.38 | P18: 8.29
B20: ВТОРНИК
B21: Меню дополнительного питания
A22: № 119,105/2017 | B22: Суп гороховый с гренками | D22: 250/15 | E22: 9.67 | F22: 48.26 | G22: 27.35 | H22: 607.48 | I22: 0.33 | J22: 1.00 | K22: 0.00 | L22: 22.56 | M22: 58.46 | N22: 115.98 | O22: 44.82 | P22: 3.15
A23: 174/ 2017 | B23: Каша молочная пшенная с маслом сливочным | D23: 180/3 | E23: 6.46 | F23: 12.22 | G23: 31.80 | H23: 264.09 | I23: 0.16 | J23: 1.00 | K23: 61.71 | L23: 0.21 | M23: 119.09 | N23: 158.93 | O23: 40.80 | P23: 1.06
A24: № 376/2017 | B24: Чай с сахаром | D24: 190/10 | E24: 0.07 | F24: 0.02 | G24: 9.52 | H24: 38.10 | I24: 0.00 | J24: 0.03 | K24: 0.00 | L24: 0.00 | M24: 10.43 | N24: 2.67 | O24: 1.33 | P24: 0.25
A25: табл 6 стр 144 Дели +,2012 | B25: Хлеб сельский/белый | D25: 20/20 | E25: 5.37 | F25: 6.59 | G25: 11.18 | H25: 133.57 | I25: 0.06 | J25: 10.70 | K25: 9.20 | L25: 2.45 | M25: 60.18 | N25: 74.60 | O25: 28.96 | P25: 3.44
B26: Итого: | C26: 40 | D26: 688 | E26: =SUM(E22:E25) -> 21.57 | F26: =SUM(F22:F25) -> 67.09 | G26: 79.86 | H26: 1043.23 | I26: 0.55 | J26: 12.73 | K26: 70.91 | L26: 25.22 | M26: 248.15 | N26: 352.18 | O26: 115.91 | P26: 7.89
B28: СРЕДА
B29: Меню дополнительного питания
A30: № 103,288/2017 | B30: Суп - лапша с картофелем с мясом птицы | D30: 250/10 | E30: 5.65 | F30: 6.10 | G30: 11.62 | H30: 132.55 | I30: 0.05 | J30: 0.50 | K30: 14.50 | L30: 2.61 | M30: 32.45 | N30: 52.80 | O30: 12.68 | P30: 2.65
A31: № 210/2017 | B31: Омлет натуральный | D31: 150 | E31: 13.94 | F31: 24.83 | G31: 2.64 | H31: 289.66 | I31: 0.10 | J31: 0.26 | K31: 324.57 | L31: 0.75 | M31: 103.09 | N31: 225.78 | O31: 16.14 | P31: 2.64
A32: № 346/2017 | B32: Компот из сухофруктов | D32: 200 | E32: 0.662 | F32: 0.09 | G32: 32.014 | H32: 132.8 | I32: 0.016 | J32: 0.726 | K32: 0 | L32: 0.508 | M32: 32.48 | N32: 23.44 | O32: 17.46 | P32: 0.698
A33: табл 6 стр 144 Дели +,2012 | B33: Хлеб сельский/белый | D33: 20/20 | E33: 5.37 | F33: 6.59 | G33: 11.18 | H33: 133.57 | I33: 0.06 | J33: 10.70 | K33: 9.20 | L33: 2.45 | M33: 60.18 | N33: 74.60 | O33: 28.96 | P33: 3.44
B34: Итого: | C34: 40 | D34: 650 | E34: =SUM(E30:E33) -> 25.62 | F34: 37.61 | G34: 57.46 | H34: 688.58 | I34: 0.23 | J34: 12.19 | K34: 348.27 | L34: 6.32 | M34: 228.19 | N34: 376.62 | O34: 75.23 | P34: 9.42
B42: ЧЕТВЕРГ
B43: Меню дополнительного питания
A44: № 96/2017 | B44: Рассольник ленинградский с куриными фрикадельками,со сметаной | D44: 250/11/7 | E44: 3.63 | F44: 8.13 | G44: 13.04 | H44: 145.39 | I44: 0.10 | J44: 8.62 | K44: 13.04 | L44: 2.41 | M44: 40.64 | N44: 70.07 | O44: 26.34 | P44: 1.05
A45: № 397/2017 | B45: Блины со сгущенным молоком | D45: 90/20 | E45: 7.98 | F45: 5.94 | G45: 44.47 | H45: 263.35 | I45: 0.16 | J45: 1.12 | K45: 18.76 | L45: 2.32 | M45: 143.91 | N45: 157.75 | O45: 36.11 | P45: 1.17
A46: № 376/2017 | B46: Чай с сахаром | D46: 190/10 | E46: 0.07 | F46: 0.02 | G46: 9.52 | H46: 38.10 | I46: 0.00 | J46: 0.03 | K46: 0.00 | L46: 0.00 | M46: 10.43 | N46: 2.67 | O46: 1.33 | P46: 0.25
A47: табл 6 стр 144 Дели +,2012 | B47: Хлеб сельский/белый | D47: 20/20 | E47: 5.37 | F47: 6.59 | G47: 11.18 | H47: 133.57 | I47: 0.06 | J47: 10.70 | K47: 9.20 | L47: 2.45 | M47: 60.18 | N47: 74.60 | O47: 28.96 | P47: 3.44
B48: Итого: | C48: 40 | D48: 618 | E48: =SUM(E44:E47) -> 17.06 | F48: =SUM(F44:F47) -> 20.67 | G48: 78.22 | H48: 580.41 | I48: 0.31 | J48: 20.47 | K48: 41.00 | L48: 7.18 | M48: 255.15 | N48: 305.09 | O48: 92.73 | P48: 5.91
B50: ПЯТНИЦА
B51: Меню дополнительного питания
A52: 98/2017 | B52: Суп крестьянский с крупой,с мясными фрикадельками, со сметаной | D52: 250/11/7 | E52: 3.07 | F52: 7.71 | G52: 7.13 | H52: 111.99 | I52: 0.05 | J52: 10.18 | K52: 11.12 | L52: 2.37 | M52: 45.94 | N52: 46.04 | O52: 16.28 | P52: 0.70
A53: №3 /2017 | B53: Бутерброд с сыром | D53: 50 | E53: 6.27 | F53: 7.86 | G53: 14.83 | H53: 155.00 | I53: 0.04 | J53: 0.11 | K53: 51.5 | L53: 0.45 | M53: 157.2 | N53: 111 | O53: 12.45 | P53: 0.45
A54: № 173/2017 | B54: Каша геркулесовая молочная с маслом сливочным | D54: 200/5 | E54: 8.02 | F54: 14.82 | G54: 36.23 | H54: 311.41 | I54: 0.17 | J54: 0.92 | K54: 64.82 | L54: 0.63 | M54: 144.63 | N54: 226.90 | O54: 68.11 | P54: 1.67
A55: № 376/2017 | B55: Чай с сахаром с яблоком | D55: 180/10/10 | E55: 0.10 | F55: 0.06 | G55: 14.24 | H55: 57.72 | I55: 0.00 | J55: 1.03 | K55: 0.00 | L55: 0.02 | M55: 11.41 | N55: 3.57 | O55: 2.14 | P55: 0.47
A56: Хим.состав и калорийность российских продуктов питания,табл 6, стр 144 , 2012 Дели + | B56: Хлеб ржаной | D56: 20 | E56: 1.32 | F56: 0.24 | G56: 7.92 | H56: 39.6 | I56: 0.034 | J56: 0 | K56: 0 | L56: 0.28 | M56: 5.8 | N56: 30 | O56: 9.4 | P56: 0.78
B57: Итого: | C57: 40 | D57: 743 | E57: =SUM(E52:E56) -> 18.78 | F57: =SUM(F52:F56) -> 30.69 | G57: 80.35 | H57: 675.72 | I57: 0.30 | J57: 12.24 | K57: 127.45 | L57: 3.75 | M57: 364.98 | N57: 417.52 | O57: 108.38 | P57: 4.07
B59: СУББОТА
B60: Меню дополнительного питания
A61: №99 /2017 | B61: Суп из овощей на курином бульоне, со сметаной | D61: 250/10 | E61: 1.85 | F61: 6.49 | G61: 9.51 | H61: 111.45 | I61: 0.08 | J61: 10.42 | K61: 10.00 | L61: 2.36 | M61: 43.65 | N61: 55.38 | O61: 21.65 | P61: 0.80
A62: № 288/2017 | B62: Курица отварная | D62: 100 | E62: 21.35 | F62: 23.47 | G62: 0.44 | H62: 298.18 | I62: 0.04 | J62: 2.15 | K62: 89.27 | L62: 0.93 | M62: 50.91 | N62: 151.82 | O62: 18.44 | P62: 1.73
A63: № 173/2017 | B63: Каша пшеничная молочная | D63: 150 | E63: 6.17 | F63: 7.90 | G63: 31.66 | H63: 222.86 | I63: 0.10 | J63: 0.69 | K63: 39.14 | L63: 0.55 | M63: 104.84 | N63: 158.07 | O63: 31.66 | P63: 1.67
A64: № 358/2017 | B64: Кисель детский витаминизированный | D64: 200 | E64: 0.6 | F64: 0.1 | G64: 30.2 | H64: 123.60 | I64: 0.002 | J64: 1.100 | M64: 15.7 | N64: 16.3 | O64: 3.36 | P64: 0.37
A65: табл 6 стр 144 Дели +,2012 | B65: Хлеб сельский/белый | D65: 20/20 | E65: 5.37 | F65: 6.59 | G65: 11.18 | H65: 133.57 | I65: 0.06 | J65: 10.70 | K65: 9.20 | L65: 2.45 | M65: 60.18 | N65: 74.60 | O65: 28.96 | P65: 3.44
B66: Итого: | C66: 40 | D66: 750 | E66: =SUM(E61:E65) -> 35.34 | F66: 44.55 | G66: 82.99 | H66: 889.66 | I66: 0.27 | J66: 25.05 | K66: 147.62 | L66: 6.29 | M66: 275.27 | N66: 456.16 | O66: 104.07 | P66: 8.00
B67: Всего за 6 дней: | D67: =D18+D34+D26+D48+D66+D57 -> 4162 | E67: 135.1 | F67: 227.8 | G67: 460.0 | H67: 4531.4 | I67: 1.9 | J67: 106.1 | K67: 828.9 | L67: 54.3 | M67: 1634.9 | N67: 2175.2 | O67: 578.7 | P67: 43.6
A80: 2 неделя
A81: № Сб.рец | B81: Наименование продуктов | C81: Стоимость,руб | D81: Выход,г | E81: Белки,г | F81: Жиры,г | G81: Угл-ды,г | H81: Энер.ценность (ККАЛ) | I81: В1,мг | J81: С,мг | K81: А,мкг | L81: Е,мг | M81: Са | N81: Р | O81: Mg | P81: Fe
B82: Понедельник
B83: Меню дополнительного питания
A84: № 82,109/2017 | B84: Борщ из свежей капусты с мясом птицы,со сметаной | D84: 250/10/7 | E84: 5.06 | F84: 6.53 | G84: 11.18 | H84: 131.89 | I84: 0.06 | J84: 10.70 | K84: 9.00 | L84: 2.45 | M84: 59.79 | N84: 73.17 | O84: 28.76 | P84: 3.24
A85: № 397/2017 | B85: Блины со сгущенным молоком | D85: 90/20 | E85: 7.98 | F85: 5.94 | G85: 44.47 | H85: 263.35 | I85: 0.16 | J85: 1.12 | K85: 18.76 | L85: 2.32 | M85: 143.91 | N85: 157.75 | O85: 36.11 | P85: 1.17
A86: № 343/2017 | B86: Компот из сухофруктов | D86: 200 | E86: 0.66 | F86: 0.09 | G86: 32.01 | H86: 132.80 | I86: 0.02 | J86: 0.73 | K86: 0.00 | L86: 0.51 | M86: 32.48 | N86: 23.44 | O86: 17.46 | P86: 0.70
A87: табл 6 стр 144 Дели +,2012 | B87: Хлеб сельский/белый | D87: 20/20 | E87: 5.37 | F87: 6.59 | G87: 11.18 | H87: 133.57 | I87: 0.06 | J87: 10.70 | K87: 9.20 | L87: 2.45 | M87: 60.18 | N87: 74.60 | O87: 28.96 | P87: 3.44
B88: Итого: | C88: 40 | D88: 617 | E88: =SUM(E84:E87) -> 19.08 | F88: =SUM(F84:F87) -> 19.15 | G88: 98.85 | H88: 661.61 | I88: 0.28 | J88: 23.25 | K88: 36.96 | L88: 7.74 | M88: 296.35 | N88: 328.96 | O88: 111.28 | P88: 8.55
B90: ВТОРНИК
B91: Меню дополнительного питания
A92: № 97,288/2017 | B92: Суп картофельный с мясными фрикадкельками | D92: 250/11 | E92: 4.54 | F92: 4.12 | G92: 16.95 | H92: 135.57 | I92: 0.14 | J92: 12.06 | K92: 2.20 | L92: 1.35 | M92: 32.82 | N92: 100.57 | O92: 34.94 | P92: 1.37
A93: № 233/2017 | B93: Запеканка из творога со сгущенным молоком | D93: 150/20 | E93: 24.84 | F93: 18.80 | G93: 47.60 | H93: 459.00 | I93: 0.10 | J93: 0.80 | K93: 110.50 | L93: 0.70 | M93: 332.50 | N93: 365.77 | O93: 45.15 | P93: 1.09
A94: № 377/2017 | B94: Чай с сахаром, с лимоном | D94: 185/10/5 | E94: 0.12 | F94: 0.02 | G94: 13.69 | H94: 55.86 | I94: 0.00 | J94: 2.55 | K94: 0.00 | L94: 0.01 | M94: 12.79 | N94: 3.96 | O94: 2.16 | P94: 0.32
A95: табл 6 стр 134 Дели +,2012 | B95: Батон высший сорт | D95: 30 | E95: 2.25 | F95: 0.87 | G95: 15.42 | H95: 78.6 | I95: 0.033 | J95: 0 | K95: 0 | L95: 0.51 | M95: 5.7 | N95: 19.5 | O95: 3.9 | P95: 0.36
B96: Итого: | C96: 40 | D96: 661 | E96: =SUM(E92:E95) -> 31.75 | F96: =SUM(F92:F95) -> 23.80 | G96: 93.67 | H96: 729.03 | I96: 0.28 | J96: 15.41 | K96: 112.70 | L96: 2.57 | M96: 383.81 | N96: 489.80 | O96: 86.15 | P96: 3.15
B98: СРЕДА
B99: Меню дополнительного питания
A100: № 88/2017 | B100: Щи из свежей капусты с картофелем на курином бульоне,со сметаной | D100: 250/10 | E100: 2.025 | F100: 6.45 | G100: 8.2625 | H100: 105.95 | I100: 0.0605 | J100: 15.815 | K100: 10 | L100: 2.38 | M100: 58.05 | N100: 55.1 | O100: 23.025 | P100: 0.845
A101: № 173/2017 | B101: Каша геркулесовая молочная с маслом сливочным | D101: 180/5 | E101: 7.23 | F101: 13.37 | G101: 32.70 | H101: 281.03 | I101: 0.16 | J101: 0.83 | K101: 58.50 | L101: 0.57 | M101: 130.52 | N101: 204.77 | O101: 61.47 | P101: 1.51
A102: № 342/2017 | B102: Компот из свежих яблок | D102: 200 | E102: 0.16 | F102: 0.16 | G102: 27.88 | H102: 114.6 | I102: 0.012 | J102: 0.9 | K102: 0 | L102: 0.08 | M102: 14.18 | N102: 4.4 | O102: 5.14 | P102: 0.952
A103: табл 6 стр 144 Дели +,2012 | B103: Хлеб сельский/белый | D103: 20/20 | E103: 5.37 | F103: 6.59 | G103: 11.18 | H103: 133.57 | I103: 0.06 | J103: 10.70 | K103: 9.20 | L103: 2.45 | M103: 60.18 | N103: 74.60 | O103: 28.96 | P103: 3.44
B104: Итого: | C104: 40 | D104: 685 | E104: =SUM(E100:E103) -> 14.79 | F104: =SUM(F100:F103) -> 26.57 | G104: 80.03 | H104: 635.15 | I104: 0.28 | J104: 28.25 | K104: 77.70 | L104: 5.48 | M104: 262.92 | N104: 338.87 | O104: 118.59 | P104: 6.74
B106: ЧЕТВЕРГ
B107: Меню дополнительного питания
A108: № 103,297/2017 | B108: Суп картофельный с макаронными изделиями,с мясными фрикадельками | D108: 200/11 | E108: 4.34 | F108: 3.56 | G108: 14.05 | H108: 116.17 | I108: 0.10 | J108: 6.66 | K108: 2.20 | L108: 1.21 | M108: 25.73 | N108: 76.90 | O108: 25.36 | P108: 1.07
A109: № 174/2017 | B109: Каша ячневая молочная с маслом сливочным | D109: 180/5 | E109: 6.31 | F109: 13.04 | G109: 33.67 | H109: 278.14 | I109: 0.10 | J109: 0.82 | K109: 66.97 | L109: 0.56 | M109: 140.09 | N109: 208.51 | O109: 31.25 | P109: 0.82
A110: № 377/2017 | B110: Чай с сахаром,с лимоном | D110: 185/10/5 | E110: 0.12 | F110: 0.02 | G110: 13.69 | H110: 55.86 | I110: 0.00 | J110: 2.55 | K110: 0.00 | L110: 0.01 | M110: 12.79 | N110: 3.96 | O110: 2.16 | P110: 0.32
A111: табл 6 стр 144 Дели +,2012 | B111: Хлеб сельский/белый | D111: 20/20 | E111: 5.37 | F111: 6.59 | G111: 11.18 | H111: 133.57 | I111: 0.06 | J111: 10.70 | K111: 9.20 | L111: 2.45 | M111: 60.18 | N111: 74.60 | O111: 28.96 | P111: 3.44
B112: Итого: | C112: 40 | D112: 636 | E112: =SUM(E108:E111) -> 16.14 | F112: =SUM(F108:F111) -> 23.20 | G112: 72.59 | H112: 583.74 | I112: 0.26 | J112: 20.73 | K112: 78.37 | L112: 4.23 | M112: 238.79 | N112: 363.98 | O112: 87.73 | P112: 5.65
B114: ПЯТНИЦА
B115: Меню дополнительного питания
A116: № 99,105/2017 | B116: Суп из овощей с фрикадельками мясными | D116: 250/11 | E116: 3.78 | F116: 6.28 | G116: 9.23 | H116: 116.82 | I116: 0.08 | J116: 10.43 | K116: 2.20 | L116: 2.40 | M116: 37.22 | N116: 72.12 | O116: 24.29 | P116: 0.95
A117: № 397/2017 | B117: Блины со сгущенным молоком | D117: 90/20 | E117: 7.98 | F117: 5.94 | G117: 44.47 | H117: 263.35 | I117: 0.16 | J117: 1.12 | K117: 18.76 | L117: 2.32 | M117: 143.91 | N117: 157.75 | O117: 36.11 | P117: 1.17
A118: № 358/2017 | B118: Кисель детский витаминизированный | D118: 200 | E118: 0.6 | F118: 0.1 | G118: 30.2 | H118: 123.60 | I118: 0.002 | J118: 1.100 | M118: 15.7 | N118: 16.3 | O118: 3.36 | P118: 0.37
A119: табл 6 стр 144 Дели +,2012 | B119: Хлеб сельский/белый | D119: 20/20 | E119: 5.37 | F119: 6.59 | G119: 11.18 | H119: 133.57 | I119: 0.06 | J119: 10.70 | K119: 9.20 | L119: 2.45 | M119: 60.18 | N119: 74.60 | O119: 28.96 | P119: 3.44
B120: Итого: | C120: 40 | D120: 611 | E120: =SUM(E116:E119) -> 17.74 | F120: 18.90 | G120: 95.08 | H120: 637.34 | I120: 0.29 | J120: 23.35 | K120: 30.16 | L120: 7.17 | M120: 257.00 | N120: 320.77 | O120: 92.72 | P120: 5.93
B122: СУББОТА
B123: Меню дополнительного питания
A124: № 102/2017 | B124: Суп картофельный с фасолью с мясом птицы | D124: 250/10 | E124: 6.40 | F124: 6.68 | G124: 20.17 | H124: 166.56 | I124: 0.19 | J124: 7.27 | K124: 0.00 | L124: 3.05 | M124: 62.84 | N124: 172.47 | O124: 47.88 | P124: 2.26
A125: 174/ 2017 | B125: Каша молочная кукурузная с маслом сливочным | D125: 200/3 | E125: 7.29 | F125: 12.75 | G125: 48.40 | H125: 337.90 | I125: 0.09 | J125: 0.91 | K125: 64.19 | L125: 0.41 | M125: 132.60 | N125: 147.20 | O125: 30.10 | P125: 1.61
A126: № 376/2017 | B126: Чай с сахаром | D126: 190/10 | E126: 0.07 | F126: 0.02 | G126: 9.52 | H126: 38.10 | I126: 0.00 | J126: 0.03 | K126: 0.00 | L126: 0.00 | M126: 10.43 | N126: 2.67 | O126: 1.33 | P126: 0.25
A127: табл 6 стр 134 Дели +,2012 | B127: Батон высший сорт | D127: 30 | E127: 2.25 | F127: 0.87 | G127: 15.42 | H127: 78.6 | I127: 0.033 | J127: 0 | K127: 0 | L127: 0.51 | M127: 5.7 | N127: 19.5 | O127: 3.9 | P127: 0.36
B128: Итого: | C128: 40 | D128: 683 | E128: =SUM(E124:E127) -> 16.00 | F128: =SUM(F124:F127) -> 20.32 | G128: 93.52 | H128: 621.15 | I128: 0.31 | J128: 8.21 | K128: 64.19 | L128: 3.97 | M128: 211.57 | N128: 341.83 | O128: 83.21 | P128: 4.47
B130: Всего: | D130: =D88+D96+D120+D112+D104+D128 -> 3893 | E130: 115.51 | F130: 131.94 | G130: 533.73 | H130: 3868.02 | I130: 1.70 | J130: 119.20 | K130: 400.09 | L130: 31.16 | M130: 1650.43 | N130: 2184.21 | O130: 579.68 | P130: 34.49
B131: Всего за 12 дней: | D131: =D67+D130 -> 8055 | E131: 250.63 | F131: 359.71 | G131: 993.76 | H131: 8399.40 | I131: 3.56 | J131: 225.30 | K131: 1228.98 | L131: 85.44 | M131: 3285.30 | N131: 4359.44 | O131: 1158.38 | P131: 78.07
B132: В среднем на 1 учащегося в день | D132: =D131/12 -> 671 | E132: =E131/12 -> 20.89 | F132: =F131/12 -> 29.98 | G132: 82.81 | H132: 699.95 | I132: 0.30 | J132: 18.78 | K132: 102.41 | L132: 7.12 | M132: 273.77 | N132: 363.29 | O132: 96.53 | P132: 6.51
